Cogmind - Beta 14 @@@ ROGUE MODE // 2025.01.13 @ 23:05:55 Player: hvatnajokl Result: Self-destructed Performance ------------- Evolutions (1) 500 Regions Visited (2) 400 Robots Destroyed (8) 40 Value Destroyed (270) 270 Prototype IDs (0) 0 Alien Tech Used (0) 0 Bonus (0) 0 TOTAL SCORE: 1210 Bonus ------- None Cogmind --------- Core Integrity 400/400 Matter 294/300 Energy 275/275 System Corruption 0% Temperature Cool (0) Movement Walking (190) Ox1 Location -9/Materials Parts ------- > --- POWER (2) -------- Ion Engine Light Ion Engine > --- PROPULSION (2) --- Aluminum Leg Aluminum Leg > --- UTILITY (3) ------ Small Storage Unit Medium Armor Plating Trap Extractor (0/4) > --- WEAPON (2) ------- Small Laser Assault Rifle > --- INVENTORY (8) ---- Ion Engine Ion Engine Peak State ------------ > --- POWER ------------ Ion Engine Light Ion Engine > --- PROPULSION ------- Aluminum Leg Aluminum Leg > --- UTILITY ---------- Small Storage Unit Medium Armor Plating Trap Extractor > --- WEAPON ----------- Small Laser Assault Rifle > --- INVENTORY -------- Ion Engine Ion Engine [Rating: 11] Favorites ----------- Power Ion Engine Engine Ion Engine Propulsion Aluminum Leg Leg Aluminum Leg Utility Small Storage Unit Device Trap Extractor Storage Small Storage Unit Protection Medium Armor Plating Weapon Small Laser Energy Gun Small Laser Ballistic Gun Assault Rifle Launcher Grenade Launcher Build | -11 -10 -9 ------- Run | Yrd Mat Mat Slots Evolved 2 | . . 2 Power 1 | . . 1 Propulsion . | . . . Utility 1 | . . 1 Weapon . | . . . Parts Attached 17 | 6 4 7 Power 5 | 1 2 2 Engine 5 | 1 2 2 Core . | . . . Reactor . | . . . Propulsion 4 | 2 . 2 Treads . | . . . Leg 4 | 2 . 2 Wheel . | . . . Hover . | . . . Flight . | . . . Utility 3 | 1 . 2 Device 1 | . . 1 Storage 1 | 1 . . Processor . | . . . Hackware . | . . . Protection 1 | . . 1 Artifact . | . . . Weapon 5 | 2 2 1 Energy Gun 3 | 2 1 . Energy Cannon . | . . . Ballistic Gun 1 | . . 1 Ballistic Cannon . | . . . Launcher 1 | . 1 . Special Weapon . | . . . Impact Weapon . | . . . Slashing Weapon . | . . . Piercing Weapon . | . . . Special Melee Weapon . | . . . Unidentified Prototypes . | . . . Corrupted Parts 1 | . 1 . System Corruption 2 | . 2 . Parts Lost 3 | . 3 . Power 1 | . 1 . Propulsion . | . . . Utility . | . . . Weapon 2 | . 2 . Highest Loss Streak 2 | . 2 . To Critical Strikes . | . . . Average Slot Usage (%) 77 | . 61 88 Engine 15 | . 8 20 Leg 19 | . 21 17 Device 5 | . . 9 Storage 12 | . 14 11 Protection 4 | . . 8 Energy Gun 12 | . 15 11 Ballistic Gun 5 | . . 10 Peak Build Rating 11 | 6 6 11 Average Rating 7 | 3 4 9 On Entrance 3 | . 6 4 Naked Turns . | . . . Heaviest Build 25 | 11 11 25 Greatest Support 20 | 20 20 20 Greatest Overweight (x) 2 | . 1 2 Average Overweight (x) . | . . 1 Largest Inventory Capacity 8 | 8 8 8 Average Capacity 7 | 6 8 8 Most Carried 3 | 2 3 3 Average Carried 1 | . 1 2 Final Capacity 8 | 8 8 8 Final Carried 2 | . 2 2 Class Distribution -------------------- 100% | Mutant Dominant Class ---------------- Mutant | -10/Materials Mutant | -9/Materials Resources | -11 -10 -9 ----------- Run | Yrd Mat Mat Matter Collected 464 | 98 182 184 Remotely . | . . . Salvage Created 349 | . 182 167 Parts 25 | . 12 13 Haulers Intercepted . | . . . Recyclers Shooed 1 | . . 1 Parts Field Recycled . | . . . Retrieved Matter . | . . . Parts Self-Destructed . | . . . Prevented . | . . . Kills | -11 -10 -9 ------- Run | Yrd Mat Mat Combat Hostiles Destroyed 7 | . 4 3 Guns 7 | . 4 3 Classes Destroyed 3 | . 1 2 Worker 1 | . . 1 Grunt 6 | . 4 2 Sentry 1 | . . 1 Best Kill Streak 3 | . 3 2 Combat Bots Only 3 | . 3 2 Max Kills in Single Turn 1 | . 1 1 Gunslinging . | . . . Exploded . | . . . Melee . | . . . Uniques/NPCs Destroyed . | . . . Combat | -11 -10 -9 -------- Run | Yrd Mat Mat Hostile Shots Fired 66 | . 48 18 Missed 22 | . 17 5 Damage Taken 762 | . 595 167 Core 238 | . 238 . Absorbed by Shields . | . . . Core Remaining (%) 52 | 100 4 . Volleys Fired 38 | 1 23 14 Largest 2 | 2 2 2 Hottest 80 | 80 80 60 Shots Fired 61 | 2 31 28 Gun 56 | 2 26 28 Cannon . | . . . Launcher 5 | . 5 . Special . | . . . Kinetic 14 | . . 14 Thermal 26 | 1 11 14 Explosive 5 | . 5 . Electromagnetic 16 | 1 15 . Robot Hit Streak 9 | 2 9 7 Robot Miss Streak 4 | . 3 4 Penetration Max . | . . . Secondary Targets . | . . . Shots Hit Robots 31 | 2 12 17 Core Hits 15 | . 8 7 Critical Kills . | . . . Critical Parts Destroyed . | . . . Critical Strikes . | . . . Melee Attacks . | . . . Impact . | . . . Slashing . | . . . Piercing . | . . . Sneak Attacks . | . . . Combat Hostiles . | . . . Follow-up Attacks . | . . . Damage Inflicted 385 | 27 150 208 Guns 385 | 27 150 208 Cannons . | . . . Explosions . | . . . Melee . | . . . Ramming . | . . . Kinetic 116 | . . 116 Thermal 178 | 12 74 92 Explosive . | . . . Electromagnetic 91 | 15 76 . Impact . | . . . Slashing . | . . . Piercing . | . . . Highest Corruption 2 | . 2 . Average Corruption 2 | . 2 . Corruption Purged . | . . . Corruption Blocked . | . . . Effects 4 | . 4 . Matter Fused 3 | . 3 . Parts Rejected 1 | . 1 . Overload Shots . | . . . Overflow Damage 68 | . 68 . Projectiles . | . . . Explosions 68 | . 68 . Melee . | . . . Knockbacks . | . . . Impact . | . . . Kinetic . | . . . Secondary . | . . . Self-Inflicted Damage 201 | . 201 . Shots 5 | . 5 . Rammed . | . . . Targets Rammed . | . . . Kicked . | . . . Crushed . | . . . Highest Temperature 102 | 18 45 102 Average Temperature 26 | 12 18 33 Received Heat Transfer 294 | . 219 75 Siege Activations . | . . . Robots Corrupted . | . . . Combat Hostiles . | . . . Parts Fried . | . . . Impact Corruptions . | . . . Robots Melted . | . . . Combat Hostiles . | . . . Parts Melted . | . . . Heat Transferred 400 | 25 175 200 Parts Sabotaged . | . . . Parts Stolen . | . . . Parts Stripped . | . . . Power Chain Reactions . | . . . Alert | -11 -10 -9 ------- Run | Yrd Mat Mat Peak Influence 180 | . 150 180 Initial 63 | . . 63 Average 99 | . 83 133 Maximum Alert Level . | . . . Low Security (%) 100 | 100 100 100 Level 1 . | . . . Level 2 . | . . . Level 3 . | . . . Level 4 . | . . . Level 5 . | . . . High Security . | . . . Max Security . | . . . Squads Dispatched 4 | . 2 2 Investigation 2 | . 1 1 Extermination . | . . . Reinforcement 2 | . 1 1 Assault . | . . . Garrison . | . . . Intercept . | . . . Searches Triggered . | . . . Construction Impeded . | . . . Haulers Reinforced . | . . . Active Scanning Responses . | . . . Cargo Convoy Interrupts . | . . . Stealth | -11 -10 -9 --------- Run | Yrd Mat Mat Distress Signals 4 | . 1 3 Communications Jammed . | . . . Distress Signals . | . . . Times Spotted 18 | . 7 11 Peak Tracking Total 5 | . 3 5 Tactical Retreats . | . . . Traps | -11 -10 -9 ------- Run | Yrd Mat Mat Traps Triggered . | . . . Indirectly . | . . . Trap Hack Attempts . | . . . Triggered . | . . . Disarmed . | . . . Reprogrammed . | . . . Reused . | . . . Traps Extracted . | . . . Installed . | . . . Triggered . | . . . Machines | -11 -10 -9 ---------- Run | Yrd Mat Mat Machines Disabled 2 | . 2 . Max in Single Turn 1 | . 1 . Machines Repaired . | . . . Machines Dismantled . | . . . Machines Sabotaged . | . . . Overloaded Fab Kills . | . . . Hacking | -11 -10 -9 --------- Run | Yrd Mat Mat Machines Accessed 2 | . 1 1 Terminals 1 | . 1 . Fabricators . | . . . Repair Stations . | . . . Recycling Units 1 | . . 1 Scanalyzers . | . . . Garrison Access . | . . . Total Hacks 7 | . 4 3 Successful 5 | . 3 2 Failed 2 | . 1 1 Catastrophic . | . . . Database Lockouts . | . . . Manual . | . . . Terminals 4 | . 4 . Fabricators . | . . . Repair Stations . | . . . Recycling Units 3 | . . 3 Scanalyzers . | . . . Garrison Access . | . . . Terminal Hacks 3 | . 3 . Record 2 | . 2 . Dispatch Records 1 | . 1 . Fabricator Hacks . | . . . Repair Station Hacks . | . . . Recycling Unit Hacks 2 | . . 2 Recycle Component 1 | . . 1 Report Inventory 1 | . . 1 Scanalyzer . | . . . Garrison Access Hacks . | . . . Unauthorized Hacks . | . . . Terminals . | . . . Fabricators . | . . . Repair Stations . | . . . Recycling Units . | . . . Scanalyzers . | . . . Garrison Access . | . . . Data Cores Recovered . | . . . Used . | . . . Hacking Detections 2 | . 1 1 Full Trace Events 2 | . 1 1 Feedback Events . | . . . Feedback Blocked . | . . . Robot Schematics Acquired . | . . . Robots Built . | . . . Authchips . | . . . Time . | . . . Total Robot Build Rating . | . . . Part Schematics Acquired . | . . . Parts Built . | . . . Authchips . | . . . Time . | . . . Total Part Build Rating . | . . . Parts Repaired . | . . . Time . | . . . Parts Recycled 1 | . . 1 Recycled Matter . | . . . Retrieved Matter . | . . . Retrieved Components . | . . . Parts Scanalyzed . | . . . Part Schematics Acquired . | . . . Parts Damaged . | . . . Bothacking | -11 -10 -9 ------------ Run | Yrd Mat Mat Used RIF Installer . | . . . Robots Hacked . | . . . Non-combat . | . . . Combat . | . . . Robot Hacks Applied . | . . . Relay Couplers Released . | . . . Fabnet Peak Effective % . | . . . Robots Rewired . | . . . Allies Hacked . | . . . Hacks Repelled . | . . . Allies | -11 -10 -9 -------- Run | Yrd Mat Mat Total Allies . | . . . Largest Group . | . . . Highest-Rated Group . | . . . Highest-Rated Ally . | . . . Total Orders . | . . . Ally Attacks . | . . . Total Damage . | . . . Kills . | . . . Allies Corrupted . | . . . Allies Melted . | . . . Intel | -11 -10 -9 ------- Run | Yrd Mat Mat Robot Analysis Total . | . . . Derelict Logs Recovered . | . . . Drone Launches . | . . . Drone Recoveries . | . . . Exploration | -11 -10 -9 ------------- Run | Yrd Mat Mat Turns Passed 757 | 88 279 390 Spaces Moved 378 | 64 146 168 Core 5 | 5 . . Treads . | . . . Legs 373 | 59 146 168 Wheels . | . . . Hover . | . . . Flight . | . . . Fastest Speed 50 | 50 120 190 Average Speed 165 | 114 148 198 Slowest Speed 260 | 120 190 260 Overloaded Moves . | . . . Propulsion Burnouts . | . . . Robots Hopped . | . . . Cave-ins Triggered . | . . . Exploration Rate (%) 15 | 3 28 14 Regions Visited 2 Branch Regions . Pre-discovered Areas . | . . . Known Exits Taken . | . . . Unknown Exits Taken 2 | 1 1 . Scrap Searched . | . . . Spaces Dug . | . . . Terrain Destroyed 23 | . 23 . Melee . | . . . Projectile . | . . . AOE 23 | . 23 . Terrain Rammed . | . . . Walls Destroyed . | . . . Machines Disabled . | . . . Actions | -11 -10 -9 --------- Run | Yrd Mat Mat Total 448 | 76 177 195 Wait . | . . . Move 376 | 63 145 168 Hop . | . . . Pick Up 16 | 6 4 6 Fast Attach . | . . . Attach 14 | 6 3 5 Detach 1 | . 1 . Swap 3 | . 1 2 Drop . | . . . Fire 38 | 1 23 14 Melee . | . . . Ram . | . . . Kick . | . . . Crush . | . . . Escape Stasis . | . . . Rewire . | . . . Trap . | . . . Miscellaneous . | . . . Route ------- -11/Scrapyard -10/Materials -9/Materials History --------- Turn | Location | Event 3 | -11/Scrapyard | Discovered new exit (range 15) 89 | -11/Scrapyard | Entered Materials 193 | -10/Materials | Core integrity fell below 50% 308 | -10/Materials | Build established: Mutant 315 | -10/Materials | Core integrity fell below 20% 343 | -10/Materials | Discovered new exit (range 14) 368 | -10/Materials | Entered another Materials area 368 | -9/Materials | Evolved 2 slots: Power x1, Utility x1 758 | -9/Materials | Self-destructed Last Messages --------------- Extracted 17 matter. K-01 Serf collects debris. R-06 Scavenger collects Lgt. Ion Engine. R-06 Scavenger collects Sml. Matter Pod. K-01 Serf collects debris. Connecting with Recycling Unit... Current location identified: Materials >>Recycling(Report) Matter reserves: 0 Inventory: Spread Laser (48%) Heat Sink (93%) Heat Sink (80%) Ion Engine (100%) Aluminum Leg (71%) >>Recycle(Aluminum Leg) Accepting Aluminum Leg... ALERT: Suspicious activity at Recycling Unit M002. Dispatching Investigation squad. W-16 Scout sends out distress signal. Map ----- +----------------------------------------------------+ | ?????????????????????????????????????????????????? | | ?????????????????????????????????????????????????? | | ?????????????????????????????????????????????????? | | ?????????????????????????????????????????????????? | | ?????????????????????????????????????????????????? | | ?????????????????????????????????????????????????? | | ?????????????????????????????????????????????????? | | ?????????????????????????????????????????????????? | | ?????????????????????????????????????????????????? | | ?????????????????????????????????????????????????? | | ?????????????????????? ????????????????????????? | | ????????????????????? #??????????????????????? | | ????????????????????? ???????????????????????? | | ????????????????####? ???????????????????????? | | ???????????????? ?# #???????????????????????? | | ?????????? ???? ## #???????????????????????? | | ??????????] ?"" # #???????????????????????? | | ??????????? "?" ## #???????????????????????? | | ????????????? """ ## #???????????????????????? | | ?????? #?????? ## #???????????????????????? | | ???? ????????? ## ##??????????????????????? | | ###+#############u### #??????????????????????? | | #??????????????????????? | | T #??????????????????????? | | [ g ####### k#????????????? | | ##################### w @ gg ur ????????? | | #?# #?????## #########???????????????? | | #?# #??????# # #????????????????? | | #?# = ! #??????# # #????????????????? | | #?# ######## + #????????????????? | | #?# # # """ #????????????????? | | #?# + # """ #????????????????? | | #?# # # """ #????????????????? | | #?# ### ###############????????????????? | | ####?# #?# #??????????????????????????????? | | ???############?# #??????????????????????????????? | | ???# #####?# #??????????????????????????????? | | ???# # ### #??????????????????????????????? | | ???# + #??????????????????????????????? | | ???# # #####??????????????????????????????? | | ???# #####??????????????????????????????????? | | ???# #??????????????????????????????????????? | | ???##"Y"###??????????????????????????????????????? | | ????#"""#????????????????????????????????????????? | | ????#####????????????????????????????????????????? | | | | | | | | | | | +----------------------------------------------------+ Best States ------------- Heat Dissipation 28 Energy Generation 15 Energy Capacity 275 Matter Stores 300 Matter Capacity 300 Sight Range 16 Terrain Scan Density 10 Armor Coverage 225 Evasion (%) 55 Trap Extractor Capacity 4 Item Schematics ----------------- None Robot Schematics ------------------ None Fabricated ------------ Nothing Alien Tech Used ----------------- None Achievements -------------- None Challenges ------------ None Game ------ Seed LargeBackupScanner Manual? 0 Play Time 00:09:24 Cumulative 7.3 hours Start 2024.10.12 @ 14:55:49 End 2025.01.13 @ 23:05:55 Sessions 3 Manual Loads 0 Difficulty Rogue Special Mode None Game No. 16 Rogue 12 Adventurer 4 Explorer 0 Win Type - Total 0 Types 0/0/0/0/0/0/0/0/0 Lore% 3 Gallery% 11 Achievement% 11 Wizard Run 0 Options --------- Layout 1 ASCII 1 Keyboard 0 Movement Mouse Keybinds 0 Fullscreen 1 Font 24/Smallcaps Map View 50x35 Zoom Use 0% Tactical HUD 0 Map Filters NONE Filters NONE Steam 1 RUN: d43c06c6-286b-4a41-a8ee-2eaa0b15b38f